bitfinex-derivatives/quotes_SOLF0:USTF0_20250516
["timestamp","ask_amount","ask_price","bid_price","bid_amount"]
[1747360247639,61.58,171.44,171.43,5.8319]
[1747360248546,61.58,171.44,171.42,5.8322]
[1747360249447,61.58,171.44,171.43,5.8319]
[1747360249740,61.58,171.44,171.4,1.45832229]
[1747360250041,61.58,171.44,171.39,61.64]
[1747360250544,61.58,171.44,171.42,5.832]
[1747360251444,61.58,171.44,171.36,5.01581365]
[1747360251445,61.58,171.44,171.36,61.66]
[1747360251652,61.58,171.44,171.37,1.4584788]
[1747360251847,61.58,171.44,171.36,61.66]
[1747360252142,5.8323,171.42,171.34,5.6928]
[1747360252342,5.8323,171.42,171.35,1.45865702]
[1747360252552,61.58,171.44,171.34,5.6928]
[1747360252941,5.833,171.4,171.33,61.66]
[1747360253137,61.58,171.39,171.34,1.45888119]
[1747360253438,61.58,171.39,171.33,61.66]
[1747360253642,61.58,171.39,171.35,5.8344]
[1747360253849,61.58,171.39,171.3,66.57581365]
[1747360254152,61.58,171.39,171.36,5.8341]
[1747360254948,61.58,171.39,171.37,5.8338]
[1747360255148,61.58,171.39,171.32,1.45896958]
[1747360255451,61.58,171.39,171.38,5.8336]
[1747360255745,61.58,171.39,171.3,66.57581365]
[1747360256051,61.58,171.39,171.31,1.45900126]
[1747360256251,61.58,171.39,171.37,5.8337]
[1747360256752,61.58,171.39,171.38,5.8336]
[1747360257947,61.58,171.44,171.42,5.8322]
[1747360258253,61.58,171.43,171.35,1.45860622]
[1747360258446,61.58,171.43,171.34,61.58]
[1747360258647,61.58,171.42,171.36,5.01581365]
[1747360258847,61.58,171.42,171.37,1.45858957]
[1747360259049,61.58,171.45,171.38,63.03845844]
[1747360259249,61.58,171.45,171.38,61.58]
[1747360259456,61.58,171.49,171.39,6.47402211]
[1747360259660,61.58,171.46,171.4,1.45820846]
[1747360259856,61.58,171.46,171.39,5.01581365]
[1747360260057,61.58,171.46,171.4,1.45820823]
[1747360260258,61.58,171.46,171.45,5.8312]
[1747360260950,61.56,171.48,171.46,5.8309]
[1747360261151,61.56,171.48,171.4,1.45817211]
[1747360261352,61.56,171.48,171.39,5.01581365]
[1747360261658,61.56,171.48,171.46,5.8309]
[1747360261856,61.56,171.48,171.4,1.45817065]
[1747360262057,61.56,171.48,171.39,1.45823017]
[1747360262259,61.56,171.48,171.38,61.58]
[1747360262450,5.8314,171.45,171.41,5.8324]
[1747360262645,61.56,171.44,171.41,5.8324]
[1747360263154,61.56,171.44,171.4,5.8329]
[1747360263353,61.56,171.44,171.35,67.186]
[1747360263354,61.56,171.44,171.35,65.3218]
[1747360263550,61.56,171.44,171.35,61.58]
[1747360263755,5.8325,171.42,171.38,5.8334]
[1747360264256,5.8331,171.4,171.37,5.8339]
[1747360264459,61.56,171.39,171.32,61.58]
[1747360264759,61.56,171.39,171.33,1.45883072]
[1747360265357,61.56,171.39,171.38,5.8336]
[1747360266959,5.7709,171.44,171.42,5.8322]
[1747360267163,61.54,171.43,171.42,5.8322]
[1747360267362,61.54,171.43,171.34,1.8193]
[1747360267561,61.54,171.43,171.42,5.8323]
[1747360267760,61.54,171.43,171.37,61.58]
[1747360268156,61.54,171.43,171.41,5.8324]
[1747360268351,61.54,171.43,171.37,61.58]
[1747360268558,61.54,171.43,171.42,5.8323]
[1747360268758,61.54,171.43,171.37,61.58]
[1747360269155,67.3719,171.43,171.39,5.8329]
[1747360269351,61.54,171.43,171.34,65.2404]
[1747360269763,67.372,171.43,171.39,5.833]
[1747360271063,61.54,171.43,171.34,65.2404]
[1747360271365,61.54,171.43,171.35,1.45868286]
[1747360271557,61.54,171.43,171.41,5.8323]
[1747360271759,11.6252,171.45,171.41,5.8323]
[1747360271955,61.54,171.44,171.41,5.8323]
[1747360272151,61.54,171.44,171.35,1.45857885]
[1747360272656,73.2054,171.45,171.42,5.8323]
[1747360272855,61.54,171.43,171.42,5.8323]
[1747360273165,61.54,171.45,171.38,61.58]
[1747360273853,5.8298,171.5,171.39,1.8576]
[1747360274058,61.58,171.51,171.39,6.87341365]
[1747360274459,61.54,171.5,171.39,6.87341365]
[1747360274755,61.54,171.51,171.4,63.03799825]
[1747360274961,61.54,171.51,171.41,1.45799825]
[1747360275166,61.54,171.51,171.41,3.40049825]
[1747360275460,61.54,171.51,171.42,3.32909825]
[1747360275661,5.83,171.49,171.42,1.8711]
[1747360276263,5.8303,171.48,171.42,1.8711]
[1747360276563,61.52,171.47,171.41,1.9425]
[1747360276764,61.52,171.46,171.4,61.58]
[1747360278567,61.52,171.46,171.44,5.8313]
[1747360278769,61.52,171.46,171.4,61.58]
[1747360279069,61.52,171.46,171.43,5.8317]
[1747360280468,61.52,171.46,171.44,5.8316]
[1747360280672,61.52,171.46,171.41,1.45819189]
[1747360280870,61.52,171.46,171.42,1.45819189]
[1747360281071,61.52,171.46,171.4,61.58]
[1747360281274,61.52,171.46,171.45,5.8312]
[1747360282867,61.52,171.46,171.4,61.58]
[1747360283068,5.8315,171.45,171.4,61.58]
[1747360283270,5.8315,171.45,171.37,565.64]
[1747360283469,5.8315,171.45,171.38,1.45831233]
[1747360283676,5.8315,171.45,171.39,1.45831233]
[1747360283869,5.8315,171.45,171.4,1.45831233]
[1747360284174,123.0,171.46,171.38,1.45850411]
[1747360284374,123.0,171.46,171.39,1.45850411]
[1747360284574,123.0,171.46,171.37,61.58]
[1747360284777,123.0,171.46,171.38,1.4584308]
[1747360284972,123.0,171.46,171.39,1.4584308]
[1747360285173,123.0,171.46,171.37,61.58]
[1747360285373,123.0,171.46,171.38,1.45847523]
[1747360285577,5.8313,171.45,171.41,5.8323]
[1747360286578,123.0,171.46,171.38,1.45843117]
[1747360286883,123.0,171.46,171.34,61.48]
[1747360286884,123.0,171.46,171.36,1.45861835]
[1747360287071,5.716,171.45,171.35,5.8346]
[1747360287479,5.8324,171.42,171.39,5.8331]
[1747360287684,61.48,171.41,171.33,1.45873997]
[1747360287981,67.3127,171.41,171.34,1.45873997]
[1747360288169,67.3127,171.41,171.35,1.45873997]
[1747360288469,67.3127,171.41,171.36,1.45873997]
[1747360288670,61.48,171.41,171.32,1.8705]
[1747360289281,67.3128,171.41,171.37,5.8337]
[1747360289580,61.48,171.41,171.32,1.8705]
[1747360289981,61.48,171.41,171.33,1.45864998]
[1747360290278,61.48,171.42,171.41,5.8326]
[1747360290477,122.96,171.42,171.41,5.8326]
[1747360291276,69.1566,171.45,171.42,5.8322]
[1747360291476,61.48,171.44,171.36,1.45847976]
[1747360291677,61.48,171.44,171.37,1.45847976]
[1747360291973,5.716,171.52,171.38,1.45847976]
[1747360292178,122.98,171.51,171.39,1.45847976]
[1747360292378,122.98,171.51,171.43,5.8318]
[1747360292778,122.98,171.51,171.37,1.45840114]
[1747360292974,122.98,171.51,171.38,1.45842295]
[1747360293174,5.8311,171.46,171.39,1.45842295]
[1747360293378,61.48,171.45,171.4,1.45842295]
[1747360293581,61.48,171.45,171.42,5.8322]
[1747360293878,61.48,171.45,171.36,4.0069]
[1747360294070,61.48,171.45,171.37,1.45841422]
[1747360294275,61.48,171.45,171.38,1.45841422]
[1747360294577,61.48,171.47,171.39,64.78861422]
[1747360294780,61.48,171.47,171.4,1.45841422]
[1747360294982,61.48,171.47,171.41,1.45841422]
[1747360295185,503.82,171.54,171.42,1.45841422]
[1747360295481,503.82,171.54,171.39,63.3302]
[1747360295482,61.48,171.53,171.43,62.95841422]
[1747360295674,61.48,171.54,171.44,64.86461422]
[1747360295981,61.48,171.54,171.45,3.44021422]
[1747360296279,61.48,171.54,171.46,1.45841422]
[1747360296478,61.48,171.54,171.47,62.95841422]
[1747360296679,61.48,171.54,171.48,1.45841422]
[1747360296877,61.48,171.54,171.49,1.45841422]
[1747360297076,61.48,171.54,171.52,5.8286]
[1747360297280,61.48,171.54,171.47,61.5]
[1747360297481,61.48,171.54,171.5,5.8295]
[1747360297981,67.3085,171.54,171.47,61.5]
[1747360298182,61.48,171.53,171.41,61.46]
[1747360298479,61.48,171.53,171.45,1.45786936]
[1747360298680,61.48,171.53,171.46,1.45786936]
[1747360298880,61.48,171.53,171.47,1.45786936]
[1747360299080,61.48,171.53,171.52,5.8289]
[1747360299279,5.7893,171.57,171.45,62.91773621]
[1747360299480,61.48,171.58,171.45,61.46]
[1747360299783,61.46,171.59,171.45,61.46]
[1747360299983,61.46,171.59,171.48,8.01917053]
[1747360300179,61.46,171.59,171.49,128.15205575]
[1747360300375,61.46,171.59,171.5,1.45725575]
[1747360300576,61.48,171.61,171.6,5.8261]
[1747360300875,3.8986,171.71,171.53,61.48]
[1747360301074,122.92,171.7,171.54,1.45730063]
[1747360301273,122.92,171.7,171.54,1.45705278]
[1747360301478,123.98834692,171.7,171.54,1.45705278]
[1747360301684,5.8261,171.61,171.56,5.8274]
[1747360301886,61.44,171.6,171.56,5.8274]
[1747360302082,61.44,171.6,171.53,61.48]
[1747360302286,5.8267,171.59,171.55,5.8278]
[1747360302786,61.44,171.6,171.53,67.3084]
[1747360303085,61.44,171.6,171.53,5.8284]
[1747360303285,5.8274,171.57,171.52,5.8288]
[1747360303486,61.44,171.56,171.5,61.48]
[1747360303983,5.9103,171.61,171.5,61.48]
[1747360304189,61.42,171.6,171.5,61.48]
[1747360304376,61.42,171.6,171.5,63.3206]
[1747360304988,5.8267,171.59,171.54,5.8279]
[1747360305190,61.42,171.6,171.5,63.3206]
[1747360305393,61.42,171.6,171.5,61.48]
[1747360305779,5.8272,171.57,171.52,5.8286]
[1747360305979,61.42,171.56,171.5,61.48]
[1747360306277,61.46,171.6,171.5,61.48]
[1747360306482,61.42,171.59,171.5,61.48]
[1747360306991,61.42,171.59,171.54,5.828]
[1747360307189,61.46,171.6,171.5,61.48]
[1747360307390,61.42,171.59,171.5,61.48]
[1747360310089,61.42,171.59,171.53,5.8283]
[1747360310288,61.42,171.59,171.5,61.48]
[1747360310490,61.42,171.59,171.47,61.46]
[1747360310888,61.42,171.59,171.51,5.8289]
[1747360311289,61.42,171.59,171.47,61.46]
[1747360311795,5.8277,171.56,171.47,61.46]
[1747360311994,61.4,171.55,171.47,61.46]
[1747360312491,61.4,171.55,171.52,5.8288]
[1747360312691,61.4,171.55,171.47,61.46]
[1747360312887,5.9103,171.61,171.48,3.38079968]
[1747360313087,61.4,171.6,171.49,1.45749968]
[1747360313690,61.4,171.6,171.49,1.45724508]
[1747360314095,67.2262,171.6,171.56,5.8272]
[1747360314287,67.2262,171.6,171.52,61.38]
[1747360314488,61.4,171.6,171.52,61.38]
[1747360315287,5.8271,171.58,171.54,5.828]
[1747360315493,61.4,171.6,171.49,61.38]
[1747360315692,65.3208,171.6,171.49,61.38]
[1747360315896,5.8274,171.57,171.49,61.38]
[1747360316195,61.38,171.56,171.49,61.38]
[1747360316392,61.38,171.56,171.55,5.8278]
[1747360316994,61.38,171.58,171.49,61.38]
[1747360317192,61.38,171.57,171.49,61.38]
[1747360318195,5.828,171.55,171.51,5.8291]
[1747360318496,61.38,171.54,171.46,61.38]
[1747360318697,61.38,171.54,171.47,1.45759099]
[1747360318889,61.38,171.54,171.46,61.38]
[1747360320001,5.8285,171.53,171.49,5.8296]
[1747360320200,5.8285,171.53,171.46,61.38]
[1747360320400,61.38,171.57,171.54,5.8281]
[1747360320602,61.38,171.56,171.47,1.45763777]
[1747360321006,61.38,171.56,171.53,5.8282]
[1747360321204,61.38,171.56,171.47,1.45763777]
[1747360321706,61.38,171.56,171.46,61.38]
[1747360321905,61.38,171.56,171.43,65.2682]
[1747360322209,5.8295,171.51,171.47,5.8303]
[1747360322394,61.38,171.5,171.43,61.38]
[1747360322595,61.38,171.5,171.41,2.0093]
[1747360322799,5.8304,171.48,171.44,5.8314]
[1747360323099,61.38,171.5,171.41,1.45799876]
[1747360323407,61.38,171.5,171.44,5.8315]
[1747360324011,5.8304,171.48,171.44,5.8315]
[1747360324407,61.38,171.51,171.4,61.38]
[1747360324711,61.38,171.5,171.41,3.4673922]
[1747360325008,61.38,171.51,171.42,1.4580922]
[1747360325009,61.38,171.49,171.42,1.4580922]
[1747360325204,503.68,171.61,171.43,62.8380922]
[1747360325205,5.6636,171.6,171.43,62.8380922]
[1747360325405,122.76,171.59,171.44,62.8380922]
[1747360325606,122.76,171.59,171.45,1.4580922]
[1747360325803,5.8278,171.56,171.51,5.8289]
[1747360326004,61.38,171.55,171.51,5.8289]
[1747360326612,61.38,171.55,171.46,1.4580922]
[1747360326802,61.38,171.54,171.45,3.7853]
[1747360327000,61.38,171.54,171.45,5.2430451]
[1747360327200,67.2084,171.54,171.5,5.8293]
[1747360327599,61.38,171.54,171.45,3.7853]
[1747360327806,61.38,171.54,171.49,5.8298]
[1747360328007,61.38,171.54,171.45,3.7853]
[1747360328313,5.8289,171.52,171.45,5.24303754]
[1747360328508,61.38,171.51,171.45,1.8483]
[1747360328714,61.38,171.51,171.44,61.38]
[1747360329413,61.38,171.51,171.5,5.8295]
[1747360330309,61.4,171.58,171.48,61.4]
[1747360330507,61.38,171.57,171.48,61.4]
[1747360330706,61.38,171.57,171.49,5.8296]
[1747360330916,61.38,171.57,171.46,3.8796]
[1747360331415,61.38,171.57,171.46,1.9276]
[1747360331917,61.38,171.57,171.47,5.8305]
[1747360332216,61.38,171.57,171.45,61.4]
[1747360332410,61.38,171.57,171.41,63.3893]
[1747360332411,8.01657353,171.56,171.41,2.0093]
[1747360332618,5.8304,171.48,171.42,1.45794951]
[1747360332815,61.38,171.47,171.43,1.45794951]
[1747360333148,67.2106,171.47,171.41,2.0093]
[1747360333364,67.2106,171.47,171.42,1.45807048]
[1747360333552,67.2106,171.47,171.41,2.0093]
[1747360333707,61.38,171.47,171.42,1.45809137]
[1747360333907,61.38,171.47,171.43,1.45809181]
[1747360334115,61.38,171.47,171.44,1.45809181]
[1747360334416,61.4,171.53,171.45,1.45792116]
[1747360334618,61.38,171.52,171.46,1.45792116]
[1747360334816,67.2092,171.51,171.44,61.4]
[1747360335012,61.38,171.51,171.45,1.45785698]
[1747360335216,61.38,171.51,171.5,5.8295]
[1747360335415,61.38,171.51,171.47,1.45785698]
[1747360335608,61.38,171.51,171.44,61.4]
[1747360335813,61.38,171.51,171.5,5.8295]
[1747360336013,61.38,171.51,171.44,61.4]
[1747360336413,61.38,171.51,171.49,5.8298]
[1747360337015,61.38,171.51,171.5,5.8295]
[1747360337418,61.38,171.51,171.49,5.8297]
[1747360337611,61.38,171.51,171.46,1.4577449]
[1747360337813,61.38,171.51,171.47,1.4577449]
[1747360338017,61.4,171.54,171.48,1.45776417]
[1747360338216,61.36,171.51,171.44,61.4]
[1747360338412,61.36,171.51,171.45,1.45767461]
[1747360338615,5.6636,171.6,171.46,1.45767461]
[1747360338917,5.6636,171.6,171.47,3.46287461]
[1747360338918,122.76,171.59,171.47,3.46287461]
[1747360339123,61.36,171.58,171.56,5.8272]
[1747360339318,61.4,171.59,171.52,61.4]
[1747360339522,11.644,171.73,171.53,1.45748275]
[1747360339523,61.4,171.62,171.53,1.45748275]
[1747360339718,61.4,171.62,171.54,1.45748275]
[1747360339919,61.36,171.61,171.55,1.45748275]
[1747360340223,61.36,171.61,171.52,61.4]
[1747360340614,67.1861,171.61,171.52,61.4]
[1747360340816,61.36,171.61,171.56,5.8273]
[1747360341111,61.36,171.61,171.48,3.9518]
[1747360341319,61.36,171.61,171.54,5.8281]
[1747360341716,5.8265,171.59,171.51,1.45739042]
[1747360341912,61.4,171.58,171.52,1.45745848]
[1747360342116,61.36,171.57,171.49,61.4]
[1747360342325,61.36,171.57,171.5,1.45740136]
[1747360342522,61.36,171.57,171.51,1.45740136]
[1747360342715,61.36,171.57,171.52,1.45740136]
[1747360342916,61.36,171.57,171.49,61.4]
[1747360343117,61.36,171.57,171.5,1.45739963]
[1747360343421,61.36,171.57,171.51,1.45739963]
[1747360343621,61.36,171.57,171.52,1.45739963]
[1747360343820,61.36,171.57,171.54,5.8279]
[1747360344424,61.36,171.57,171.49,61.4]
[1747360344627,61.36,171.57,171.5,1.45748106]
[1747360344818,61.36,171.57,171.49,61.4]
[1747360345018,5.8275,171.56,171.52,5.8286]
[1747360346622,5.8282,171.54,171.5,5.8292]
[1747360346824,61.34,171.53,171.48,1.9682]
[1747360347122,61.34,171.53,171.49,1.45766615]
[1747360347429,61.34,171.53,171.48,1.9682]
[1747360347632,61.34,171.53,171.5,5.8295]
[1747360347833,61.34,171.53,171.46,61.34]
[1747360348032,61.34,171.53,171.47,1.45760985]
[1747360348331,67.1686,171.53,171.49,5.8296]
[1747360349026,5.8292,171.52,171.47,5.8302]
[1747360349223,61.34,171.53,171.47,5.8302]
[1747360350028,5.8295,171.51,171.47,5.8302]
[1747360350531,61.34,171.53,171.44,1.9508]
[1747360350734,61.34,171.54,171.45,1.4578672]
[1747360350933,61.34,171.54,171.46,1.4578672]
[1747360351121,61.34,171.54,171.47,62.7978672]
[1747360351327,61.34,171.54,171.48,1.4578672]
[1747360351530,61.34,171.53,171.44,63.2908]
[1747360352234,5.8291,171.52,171.48,5.8299]
[1747360352430,61.34,171.53,171.44,63.2908]
[1747360352631,61.34,171.53,171.45,1.45781764]
[1747360352828,61.34,171.53,171.46,1.45781764]
[1747360353033,61.34,171.53,171.5,5.8293]
[1747360353326,61.34,171.53,171.44,63.2908]
[1747360353523,61.34,171.53,171.45,1.45773153]
[1747360353727,61.34,171.53,171.46,1.45773153]
[1747360353927,61.34,171.53,171.47,1.45773153]
[1747360354124,61.34,171.53,171.48,1.45773153]
[1747360354327,61.34,171.53,171.49,1.45773153]
[1747360354532,61.34,171.53,171.44,63.2908]
[1747360354734,61.34,171.53,171.5,5.8293]
[1747360355039,61.34,171.53,171.44,63.2908]
[1747360355226,61.34,171.53,171.45,1.45770051]
[1747360355432,61.34,171.53,171.46,1.45770051]
[1747360355626,61.34,171.52,171.47,1.45770051]
[1747360355829,61.34,171.52,171.41,63.333]
[1747360356022,61.34,171.52,171.42,1.45798446]
[1747360356225,61.34,171.52,171.43,1.45799843]
[1747360356427,61.34,171.52,171.44,1.45799843]
[1747360356625,61.34,171.52,171.45,1.45799843]
[1747360356835,5.8296,171.5,171.41,63.333]
[1747360357034,61.34,171.49,171.42,1.4580387]
[1747360357236,61.34,171.49,171.46,5.8307]
[1747360357942,67.1699,171.49,171.46,5.8307]
[1747360358239,67.1699,171.49,171.45,5.8312]
[1747360358427,5.8307,171.47,171.41,61.34]
[1747360358925,5.8307,171.47,171.43,5.8317]
[1747360361238,67.1703,171.48,171.44,5.8315]
[1747360361642,67.1703,171.48,171.45,1.45808899]
[1747360361834,67.1703,171.48,171.44,5.8315]
[1747360362140,67.1703,171.48,171.45,1.45808899]
[1747360362344,67.1703,171.48,171.44,5.8315]
[1747360363746,61.34,171.48,171.38,61.34]
[1747360364042,61.34,171.48,171.39,1.45822301]
[1747360364238,61.34,171.48,171.4,1.45822301]
[1747360364439,5.8312,171.46,171.42,5.832]
[1747360364639,61.34,171.45,171.37,1.9314]
[1747360364839,61.34,171.45,171.4,5.8329]
[1747360364840,5.8317,171.44,171.4,5.8329]
[1747360365040,67.1917,171.44,171.4,5.8329]
[1747360365744,61.36,171.44,171.36,1.45860355]
[1747360366046,61.36,171.44,171.33,1.9569]
[1747360366047,61.36,171.44,171.37,1.45860355]
[1747360366241,5.8325,171.42,171.38,5.8335]
[1747360366435,61.34,171.41,171.38,5.8335]
[1747360367642,61.34,171.41,171.33,1.9569]
[1747360367837,61.34,171.41,171.34,1.45860124]
[1747360368036,61.34,171.41,171.35,1.45860124]
[1747360368240,61.36,171.44,171.36,1.45860124]
[1747360368447,61.34,171.43,171.37,1.45860124]
[1747360368741,61.34,171.43,171.33,1.9569]
[1747360368945,61.34,171.43,171.41,5.8326]
[1747360370150,61.34,171.43,171.42,5.8323]
[1747360370539,61.34,171.43,171.37,1.45854759]
[1747360370739,61.34,171.43,171.33,1.9569]
[1747360370938,61.34,171.42,171.34,1.45852855]
[1747360371244,61.34,171.42,171.35,1.45852855]
[1747360371444,61.34,171.42,171.36,1.45852855]
[1747360371746,61.34,171.42,171.41,5.8326]
[1747360372254,61.34,171.43,171.36,61.38]
[1747360372451,61.36,171.44,171.37,3.34358787]
[1747360372648,122.7,171.44,171.38,1.45838787]
[1747360372846,61.34,171.44,171.43,5.8319]
[1747360373756,61.38,171.47,171.46,5.8309]
[1747360373945,122.72,171.47,171.46,5.8309]
[1747360375252,122.72,171.47,171.45,5.8312]
[1747360375658,122.72,171.47,171.37,3.7446]
[1747360375946,61.38,171.47,171.46,5.8309]
[1747360376352,122.7,171.47,171.46,5.8309]
[1747360376552,61.32,171.5,171.47,5.8303]
[1747360376849,61.32,171.49,171.47,5.8303]
[1747360377748,61.32,171.49,171.41,3.46467201]
[1747360377949,61.32,171.49,171.41,2.0065]
[1747360379254,5.8308,171.47,171.43,5.8316]
[1747360379655,61.32,171.49,171.4,61.32]
[1747360379951,5.8315,171.45,171.37,65.0646]
[1747360380153,61.32,171.44,171.38,1.45837493]
[1747360380347,61.32,171.44,171.41,5.8325]
[1747360381154,61.32,171.44,171.38,1.45837493]
[1747360381653,61.32,171.44,171.41,5.8323]
[1747360382053,61.32,171.44,171.38,1.45840492]
[1747360382360,61.32,171.44,171.41,5.8324]
[1747360382551,61.32,171.44,171.38,1.45840492]
[1747360383057,61.32,171.44,171.42,5.832]
[1747360383250,61.32,171.44,171.39,1.45832723]
[1747360383456,5.01139554,171.54,171.4,1.45832723]
[1747360383659,122.64,171.53,171.38,5.01139554]
[1747360383956,122.64,171.53,171.43,5.8318]
[1747360384257,5.01139554,171.51,171.38,1.45829278]
[1747360384457,5.01139554,171.51,171.37,65.0646]
[1747360384458,1.9568,171.5,171.37,65.0646]
[1747360384755,5.8315,171.45,171.41,5.8324]
[1747360384952,61.32,171.44,171.41,5.8324]
[1747360385158,67.1517,171.44,171.4,5.8328]
[1747360385658,5.8319,171.43,171.4,5.8328]
[1747360385859,61.32,171.44,171.36,1.4585431]
[1747360386061,61.32,171.44,171.34,61.32]
[1747360386358,67.1518,171.44,171.4,5.8327]
[1747360386562,61.32,171.44,171.4,5.8327]
[1747360386860,61.32,171.44,171.39,5.8332]
[1747360387164,61.32,171.44,171.36,1.4585999]
[1747360387354,61.32,171.44,171.42,5.8322]
[1747360388052,61.32,171.44,171.41,5.8325]
[1747360388251,61.32,171.44,171.36,2.0201]
[1747360388558,5.8319,171.43,171.37,1.45859446]
[1747360388755,5.8319,171.43,171.36,2.0201]
[1747360388954,61.32,171.44,171.36,2.0201]
[1747360389259,5.8325,171.42,171.38,5.8333]
[1747360390153,5.8327,171.41,171.37,5.8338]
[1747360390357,122.62,171.4,171.31,63.2259]
[1747360390551,122.62,171.4,171.34,1.4587436]
[1747360390552,61.3,171.39,171.34,1.4587436]
[1747360390760,61.3,171.39,171.35,5.8344]
[1747360391560,5.8336,171.38,171.35,5.8344]
[1747360392053,67.1333,171.39,171.35,5.8344]
[1747360392254,61.3,171.39,171.31,63.2259]
[1747360392456,61.3,171.41,171.32,6.47015373]
[1747360392759,61.32,171.46,171.35,5.01139554]
[1747360392956,61.32,171.46,171.36,66.64995819]
[1747360393156,61.3,171.45,171.37,1.45875819]
[1747360393350,61.3,171.45,171.38,1.45875819]
[1747360393558,61.3,171.45,171.36,65.1912]
[1747360393760,61.3,171.45,171.44,5.8316]
[1747360393962,61.3,171.45,171.36,65.1912]
[1747360394461,61.3,171.45,171.37,1.45831603]
[1747360394664,61.3,171.45,171.38,3.39651603]
[1747360394969,61.3,171.45,171.44,5.8316]
[1747360396964,565.4,171.49,171.47,5.8305]
[1747360397174,61.3,171.48,171.47,5.8305]
[1747360397463,61.32,171.49,171.47,5.8305]
[1747360397654,61.3,171.48,171.47,5.8305]
[1747360398568,61.3,171.49,171.43,1.45811458]
[1747360398764,61.32,171.52,171.44,1.45811458]
[1747360398969,61.28,171.51,171.45,1.45811458]
[1747360399272,61.28,171.51,171.46,1.45811458]
[1747360399460,61.28,171.51,171.47,1.45811458]
[1747360399656,122.6,171.52,171.45,1.9885]
[1747360399862,122.6,171.52,171.46,1.45783884]
[1747360400165,122.6,171.52,171.51,5.8292]
[1747360400561,61.32,171.55,171.51,5.8292]
[1747360400758,61.32,171.55,171.45,1.9885]
[1747360401065,61.28,171.54,171.45,1.9885]
[1747360401469,61.28,171.54,171.53,5.8285]
[1747360401670,61.28,171.56,171.48,61.32]
[1747360401864,61.32,171.58,171.49,1.45741252]
[1747360402067,122.58,171.58,171.5,1.45741252]
[1747360402265,122.58,171.58,171.51,3.31446776]
[1747360402466,61.26,171.57,171.52,1.45741144]
[1747360402666,61.26,171.57,171.55,5.8276]
[1747360403267,61.26,171.57,171.54,5.8281]
[1747360403967,61.26,171.57,171.51,1.8571]
[1747360404271,61.26,171.57,171.45,63.3085]
[1747360404465,66.9802,171.57,171.46,1.45775535]
[1747360404665,66.9802,171.57,171.45,63.3085]
[1747360404866,66.9802,171.57,171.46,1.45783449]
[1747360405171,66.9802,171.57,171.46,5.8308]
[1747360405172,5.8295,171.51,171.46,5.8308]
[1747360405372,61.26,171.5,171.46,5.8308]
[1747360406974,67.0896,171.5,171.46,5.8308]
[1747360407666,67.0896,171.5,171.45,5.8311]
[1747360408065,67.0896,171.5,171.43,1.45811677]
[1747360408266,61.26,171.5,171.47,5.8305]
[1747360408661,61.26,171.5,171.42,63.2338]